Cogmind - Beta 14 @@@ ROGUE MODE // 2024.08.07 @ 17:07:23 Player: CrossedViper Result: Destroyed by MQ-CH3(j) with Overtuned Pulse Rifle Performance ------------- Evolutions (0) 0 Regions Visited (5) 1000 Robots Destroyed (36) 180 Value Destroyed (920) 920 Prototype IDs (11) 220 Alien Tech Used (0) 0 Bonus (2348) 2348 TOTAL SCORE: 4668 Bonus ------- Follower Combat Kills 60 Delivered SUBCON Basin 2000 Registered with UFD 300 Friendly Fire -12 Cogmind --------- Core Integrity 0/250 Matter 300/300 Energy 122/200 System Corruption 0% Temperature Cool (52) Movement Rolling (190) Ox6 Location -7/Scraptown Parts ------- > --- POWER (1+1) ------ Subdweller Power Source (+) Subdweller Power Source > --- PROPULSION (2) --- Compact Wheel Subdweller Monowheel > --- UTILITY (2) ------ Huge Storage Unit Mapping Drone Bay (3/3) > --- WEAPON (2) ------- Powered Cannon > --- INVENTORY (25) --- Overtuned Titanium Leg Scrap Suit Makeshift Microdissipator Network Subdweller Optics Makeshift Salvage Targeting Computer Hardened Medium Armor Plating Scrap Shield Authchip [Armor] Authchip [Weapon] Tech Extrapolator Subdweller Beam Cannon Subdweller Shrapnel Launcher Scrap Shield Fragment (47) DRS Beacon (Ready) Peak State ------------ > --- POWER ------------ Subdweller Power Source > --- PROPULSION ------- Subdweller Monowheel Subdweller Monowheel > --- UTILITY ---------- Huge Storage Unit Subdweller Optics > --- WEAPON ----------- Subdweller Beam Cannon Subdweller Machine Gun > --- INVENTORY -------- Subdweller Power Source Scrap Shield Authchip [Armor] Authchip [Weapon] Powered Cannon Subdweller Shrapnel Launcher Scrap Shield Fragment SUBCON Basin [Rating: 34] Favorites ----------- Power Subdweller Power Source Engine Subdweller Power Source Propulsion Light Treads Treads Light Treads Wheel Subdweller Monowheel Utility Huge Storage Unit Device Subdweller Optics Storage Huge Storage Unit Hackware Hacking Suite Protection Core Shielding Weapon Subdweller Machine Gun Energy Gun Small Laser Energy Cannon Subdweller Beam Cannon Ballistic Gun Subdweller Machine Gun Ballistic Cannon Battle Cannon Slashing Weapon Mining Claw Build | -11 -10 -10 -10 -7 -7 ------- Run | Yrd Mat Min Sub Rec Scr Slots Evolved . | . . . . . . Power . | . . . . . . Propulsion . | . . . . . . Utility . | . . . . . . Weapon . | . . . . . . Parts Attached 44 | 6 11 2 21 1 3 Power 4 | 1 1 . 1 . 1 Engine 4 | 1 1 . 1 . 1 Core . | . . . . . . Reactor . | . . . . . . Propulsion 7 | 2 1 . 3 1 . Treads 3 | 2 1 . . . . Leg . | . . . . . . Wheel 4 | . . . 3 1 . Hover . | . . . . . . Flight . | . . . . . . Utility 11 | 1 2 1 6 . 1 Device 2 | . . . 1 . 1 Storage 3 | 1 . 1 1 . . Processor . | . . . . . . Hackware 1 | . 1 . . . . Protection 5 | . 1 . 4 . . Artifact . | . . . . . . Weapon 22 | 2 7 1 11 . 1 Energy Gun 9 | 2 3 . 4 . . Energy Cannon 3 | . . . 2 . 1 Ballistic Gun 4 | . 1 . 3 . . Ballistic Cannon 2 | . . . 2 . . Launcher . | . . . . . . Special Weapon . | . . . . . . Impact Weapon . | . . . . . . Slashing Weapon 4 | . 3 1 . . . Piercing Weapon . | . . . . . . Special Melee Weapon . | . . . . . . Unidentified Prototypes . | . . . . . . Parts Lost 9 | . 1 . 8 . . Power 1 | . 1 . . . . Propulsion 3 | . . . 3 . . Utility 1 | . . . 1 . . Weapon 4 | . . . 4 . . Highest Loss Streak 4 | . 1 . 4 . . To Critical Strikes 1 | . . . 1 . . Average Slot Usage (%) 95 | . 80 100 92 98 99 Engine 13 | . 6 14 13 14 14 Treads 10 | . 27 28 15 . . Wheel 16 | . . . 10 26 27 Device 6 | . . . 1 14 13 Storage 11 | . 14 14 6 14 13 Protection 6 | . . 14 14 . . Energy Gun 4 | . 16 13 5 . . Energy Cannon 8 | . . . 6 14 13 Ballistic Gun 12 | . 10 14 10 14 13 Slashing Weapon 1 | . 1 . 3 . . Peak Build Rating 34 | 6 9 7 33 34 33 Average Rating 16 | 4 6 7 14 32 18 On Entrance 11 | . 6 7 7 33 16 Naked Turns . | . . . . . . Heaviest Build 102 | 11 15 20 99 99 102 Greatest Support 40 | 40 40 40 40 20 16 Greatest Overweight (x) 32 | . . . 8 32 6 Average Overweight (x) 2 | . . . . 5 6 Largest Inventory Capacity 25 | 8 8 10 25 25 25 Average Capacity 16 | 7 8 9 9 25 25 Most Carried 25 | . 7 7 22 25 16 Average Carried 9 | . 4 6 6 24 11 Final Capacity 25 | 8 8 10 25 25 25 Final Carried 22 | . 6 6 22 11 16 Class Distribution -------------------- 48% | Scavenger-Mutant 34% | Mutant 8% | Tank 8% | Subdweller-Mutant Dominant Class ---------------- Mutant | -10/Materials Mutant | -10/Mines Mutant | -10/Subcaves Scavenger-Mutant | -7/Recycling Scavenger-Mutant | -7/Scraptown Resources | -11 -10 -10 -10 -7 -7 ----------- Run | Yrd Mat Min Sub Rec Scr Matter Collected 1082 | 223 198 43 432 156 30 Remotely . | . . . . . . Salvage Created 1229 | . 443 41 398 207 140 Parts 69 | . 25 3 29 3 9 Haulers Intercepted . | . . . . . . Recyclers Shooed 7 | . 1 . . 6 . Parts Field Recycled . | . . . . . . Retrieved Matter . | . . . . . . Parts Self-Destructed 13 | . . . 13 . . Prevented . | . . . . . . Kills | -11 -10 -10 -10 -7 -7 ------- Run | Yrd Mat Min Sub Rec Scr Combat Hostiles Destroyed 31 | . 11 3 15 . 2 Melee 3 | . 3 . . . . Guns 18 | . 8 3 7 . . Cannons 10 | . . . 8 . 2 Classes Destroyed 8 | . 3 . 3 1 1 Recycler 3 | . . . . 3 . Operator 1 | . 1 . . . . Turret 1 | . . . 1 . . Swarmer 13 | . 3 3 7 . . Grunt 8 | . 8 . . . . Artisan 1 | . . . 1 . . Subdweller 8 | . . . 8 . . Scrapper 2 | . . . . . 2 Best Kill Streak 4 | . 4 3 4 3 1 Combat Bots Only 4 | . 4 3 4 . 1 Max Kills in Single Turn 1 | . 1 1 1 1 1 Gunslinging . | . . . . . . Exploded . | . . . . . . Melee 1 | . 1 . . . . Uniques/NPCs Destroyed . | . . . . . . Combat | -11 -10 -10 -10 -7 -7 -------- Run | Yrd Mat Min Sub Rec Scr Hostile Shots Fired 179 | . 64 16 93 . 6 Missed 64 | . 23 2 37 . 2 Damage Taken 1607 | . 461 113 950 . 83 Core 253 | . 76 16 100 . 61 Absorbed by Shields . | . . . . . . Redirected to Shielding 25 | . . 3 22 . . Regen/Repaired (Parts) 87 | . 87 . . . . Core Remaining (%) 100 | 100 . . . . . Volleys Fired 129 | . 31 5 75 8 10 Largest 4 | . 2 2 4 2 1 Hottest 178 | . 70 70 178 110 40 Shots Fired 283 | . 62 10 189 12 10 Gun 162 | . 62 10 82 8 . Cannon 121 | . . . 107 4 10 Launcher . | . . . . . . Special . | . . . . . . Kinetic 142 | . 31 5 98 8 . Thermal 141 | . 31 5 91 4 10 Explosive . | . . . . . . Electromagnetic . | . . . . . . Robot Hit Streak 31 | . 19 21 31 4 1 Robot Miss Streak 4 | . 3 1 4 2 2 Penetration Max . | . . . . . . Secondary Targets 3 | . 1 1 1 . . Max Gunslinging Chain 1 | . 1 1 1 . . Shots Hit Robots 154 | . 55 9 81 7 2 Core Hits 64 | . 24 4 31 3 2 Critical Kills . | . . . . . . Critical Parts Destroyed . | . . . . . . Critical Strikes 2 | . 1 1 . . . Burn 2 | . 1 1 . . . Melee Attacks 23 | . 11 2 10 . . Impact . | . . . . . . Slashing 23 | . 11 2 10 . . Piercing . | . . . . . . Sneak Attacks . | . . . . . . Combat Hostiles . | . . . . . . Follow-up Attacks . | . . . . . . Damage Inflicted 2736 | . 820 120 1478 212 106 Guns 1604 | . 594 115 789 106 . Cannons 901 | . . . 689 106 106 Explosions . | . . . . . . Melee 211 | . 211 . . . . Ramming 20 | . 15 5 . . . Kinetic 1324 | . 273 61 884 106 . Thermal 1181 | . 321 54 594 106 106 Explosive . | . . . . . . Electromagnetic . | . . . . . . Impact . | . . . . . . Slashing 211 | . 211 . . . . Piercing . | . . . . . . Highest Corruption . | . . . . . . Average Corruption . | . . . . . . Corruption Purged . | . . . . . . Corruption Blocked . | . . . . . . Overload Shots . | . . . . . . Overflow Damage 10 | . . . 10 . . Projectiles 10 | . . . 10 . . Explosions . | . . . . . . Melee . | . . . . . . Knockbacks 3 | . . . 3 . . Impact . | . . . . . . Kinetic 3 | . . . 3 . . Secondary . | . . . . . . Self-Inflicted Damage . | . . . . . . Shots . | . . . . . . Rammed 10 | . 8 2 . . . Targets Rammed 10 | . 8 2 . . . Kicked . | . . . . . . Crushed . | . . . . . . Highest Temperature 258 | . 36 45 258 99 72 Average Temperature 45 | . 7 23 74 47 31 Received Heat Transfer 441 | . 228 . 165 . 48 Siege Activations . | . . . . . . Robots Corrupted . | . . . . . . Combat Hostiles . | . . . . . . Parts Fried . | . . . . . . Impact Corruptions . | . . . . . . Robots Melted . | . . . . . . Combat Hostiles . | . . . . . . Parts Melted 6 | . 3 1 1 . 1 Heat Transferred 2585 | . 999 222 1216 148 . Parts Sabotaged . | . . . . . . Parts Stolen . | . . . . . . Parts Stripped . | . . . . . . Power Chain Reactions . | . . . . . . Alert | -11 -10 -10 -10 -7 -7 ------- Run | Yrd Mat Min Sub Rec Scr Peak Influence 261 | . 261 85 . 208 . Initial 67 | . . 58 . 67 . Average 76 | . 109 33 . 111 . Maximum Alert Level 1 | . 1 . . 1 . Low Security (%) 91 | 100 81 100 . 89 . Level 1 8 | . 18 . . 10 . Level 2 . | . . . . . . Level 3 . | . . . . . . Level 4 . | . . . . . . Level 5 . | . . . . . . High Security . | . . . . . . Max Security . | . . . . . . Squads Dispatched 3 | . 3 . . . . Investigation 1 | . 1 . . . . Extermination . | . . . . . . Reinforcement 2 | . 2 . . . . Assault . | . . . . . . Garrison . | . . . . . . Intercept . | . . . . . . Searches Triggered . | . . . . . . Construction Impeded . | . . . . . . Haulers Reinforced . | . . . . . . Active Scanning Responses . | . . . . . . Cargo Convoy Interrupts . | . . . . . . Stealth | -11 -10 -10 -10 -7 -7 --------- Run | Yrd Mat Min Sub Rec Scr Distress Signals 2 | . 2 . . . . Communications Jammed . | . . . . . . Distress Signals . | . . . . . . Times Spotted 57 | . 23 3 28 . 3 Peak Tracking Total 7 | . 7 3 6 . 5 Tactical Retreats 5 | . 1 . 4 . . Traps | -11 -10 -10 -10 -7 -7 ------- Run | Yrd Mat Min Sub Rec Scr Traps Triggered . | . . . . . . Indirectly . | . . . . . . Trap Hack Attempts . | . . . . . . Triggered . | . . . . . . Disarmed . | . . . . . . Reprogrammed . | . . . . . . Reused . | . . . . . . Traps Extracted . | . . . . . . Installed . | . . . . . . Triggered . | . . . . . . Machines | -11 -10 -10 -10 -7 -7 ---------- Run | Yrd Mat Min Sub Rec Scr Machines Disabled 4 | . . . 3 1 . Max in Single Turn 1 | . . . 1 1 . Machines Repaired . | . . . . . . Machines Dismantled . | . . . . . . Machines Sabotaged . | . . . . . . Overloaded Fab Kills . | . . . . . . Hacking | -11 -10 -10 -10 -7 -7 --------- Run | Yrd Mat Min Sub Rec Scr Machines Accessed 18 | . 2 . 3 10 3 Terminals 6 | . 1 . . 5 . Fabricators . | . . . . . . Repair Stations 1 | . 1 . . . . Recycling Units 5 | . . . . 5 . Scanalyzers . | . . . . . . Garrison Access . | . . . . . . Total Hacks 56 | . 8 . 4 15 29 Successful 48 | . 5 . 4 10 29 Failed 8 | . 3 . . 5 . Catastrophic 1 | . . . . 1 . Database Lockouts . | . . . . . . Manual 12 | . 3 . . 9 . Terminals 14 | . 5 . . 9 . Fabricators . | . . . . . . Repair Stations 3 | . 3 . . . . Recycling Units 6 | . . . . 6 . Scanalyzers . | . . . . . . Garrison Access . | . . . . . . Terminal Hacks 40 | . 3 . 4 4 29 Record 25 | . . . 1 . 24 Robot Analysis 8 | . 2 . . 1 5 Open Door 1 | . . . 1 . . Branch Access Points 1 | . 1 . . . . Machine Index 1 | . . . . 1 . Zone Layout 2 | . . . . 2 . Derelict Proto ID Bank 1 | . . . 1 . . Release Object 1 | . . . 1 . . Fabricator Hacks . | . . . . . . Repair Station Hacks 2 | . 2 . . . . Scan Component 1 | . 1 . . . . Repair 1 | . 1 . . . . Recycling Unit Hacks . | . . . . . . Scanalyzer . | . . . . . . Garrison Access Hacks . | . . . . . . Unauthorized Hacks 6 | . . . . 6 . Terminals 1 | . . . . 1 . Botnet 1 | . . . . 1 . Fabricators . | . . . . . . Repair Stations . | . . . . . . Recycling Units 5 | . . . . 5 . Tunnel 5 | . . . . 5 . Scanalyzers . | . . . . . . Garrison Access . | . . . . . . Data Cores Recovered . | . . . . . . Used . | . . . . . . Hacking Detections 6 | . 2 . . 4 . Full Trace Events 1 | . 1 . . . . Feedback Events . | . . . . . . Feedback Blocked . | . . . . . . Robot Schematics Acquired . | . . . . . . Robots Built . | . . . . . . Authchips . | . . . . . . Time . | . . . . . . Total Robot Build Rating . | . . . . . . Part Schematics Acquired . | . . . . . . Parts Built . | . . . . . . Authchips . | . . . . . . Time . | . . . . . . Total Part Build Rating . | . . . . . . Parts Repaired 1 | . 1 . . . . Time 26 | . 26 . . . . Parts Recycled . | . . . . . . Recycled Matter . | . . . . . . Retrieved Matter . | . . . . . . Retrieved Components . | . . . . . . Parts Scanalyzed . | . . . . . . Part Schematics Acquired . | . . . . . . Parts Damaged . | . . . . . . Bothacking | -11 -10 -10 -10 -7 -7 ------------ Run | Yrd Mat Min Sub Rec Scr Used RIF Installer . | . . . . . . Robots Hacked . | . . . . . . Non-combat . | . . . . . . Combat . | . . . . . . Robot Hacks Applied . | . . . . . . Relay Couplers Released . | . . . . . . Fabnet Peak Effective % . | . . . . . . Robots Rewired . | . . . . . . Allies Hacked . | . . . . . . Hacks Repelled . | . . . . . . Allies | -11 -10 -10 -10 -7 -7 -------- Run | Yrd Mat Min Sub Rec Scr Total Allies 1 | . . 1 . . . Largest Group 1 | . . 1 1 . . Highest-Rated Group 31 | . . 31 31 . . Highest-Rated Ally 31 | . . 31 31 . . Total Orders 2 | . . . . . 2 EXPLORE 1 | . . . . . 1 RETURN 1 | . . . . . 1 Ally Attacks 21 | . . . 21 . . Total Damage 338 | . . . 338 . . Kills 2 | . . . 2 . . Allies Corrupted . | . . . . . . Allies Melted . | . . . . . . Intel | -11 -10 -10 -10 -7 -7 ------- Run | Yrd Mat Min Sub Rec Scr Robot Analysis Total 8 | . 2 . . 1 5 Derelict Logs Recovered 9 | . . 3 1 . 5 Drone Launches 3 | . . . . . 3 Drone Recoveries 3 | . . . . . 3 Exploration | -11 -10 -10 -10 -7 -7 ------------- Run | Yrd Mat Min Sub Rec Scr Turns Passed 8066 | 66 642 930 2757 703 2968 Spaces Moved 3889 | 41 278 462 1324 361 1423 Core 11 | 7 . . 2 2 . Treads 1382 | 34 278 462 608 . . Legs . | . . . . . . Wheels 2496 | . . . 714 359 1423 Hover . | . . . . . . Flight . | . . . . . . Fastest Speed 50 | 50 160 160 110 150 190 Average Speed 165 | 141 160 160 141 176 190 Slowest Speed 1650 | 160 160 160 450 1650 190 Overloaded Moves . | . . . . . . Propulsion Burnouts . | . . . . . . Robots Hopped . | . . . . . . Cave-ins Triggered . | . . . . . . Exploration Rate (%) 61 | 4 45 84 64 78 94 Regions Visited 5 Branch Regions 4 Pre-discovered Areas 12 | . . . 1 5 6 Known Exits Taken 1 | . 1 . . . . Unknown Exits Taken 4 | 1 . 1 1 1 . Scrap Searched 9 | . . 1 2 . 6 Spaces Dug 5 | . . . 1 . 4 Terrain Destroyed 11 | . . . 3 . 8 Melee . | . . . . . . Projectile 11 | . . . 3 . 8 AOE . | . . . . . . Terrain Rammed . | . . . . . . Walls Destroyed . | . . . . . . Machines Disabled . | . . . . . . Actions | -11 -10 -10 -10 -7 -7 --------- Run | Yrd Mat Min Sub Rec Scr Total 5209 | 46 382 637 2047 416 1681 Wait 1053 | . 36 164 576 41 236 Move 3884 | 40 277 461 1323 360 1423 Hop . | . . . . . . Pick Up 34 | . 7 . 17 4 6 Fast Attach 22 | 6 3 . 11 1 1 Attach 11 | . 1 . 8 . 2 Detach 3 | . . . 2 . 1 Swap 11 | . 7 2 2 . . Drop 25 | . 1 1 19 2 2 Fire 129 | . 31 5 75 8 10 Melee 23 | . 11 2 10 . . Ram . | . . . . . . Kick . | . . . . . . Crush 10 | . 8 2 . . . Escape Stasis . | . . . . . . Rewire . | . . . . . . Trap . | . . . . . . Miscellaneous 4 | . . . 4 . . Route ------- -11/Scrapyard -10/Materials (discovered 2 exits: [*Mat] / *Min) -10/Mines (discovered 3 exits: [*Mat x2] / *Sub) -10/Subcaves (discovered 3 exits: [*Mat x2] / *Rec) -7/Recycling (discovered 2 exits: [Fac] / *Scr) -7/Scraptown (discovered 2 exits: [*Fac x2]) History --------- Turn | Location | Event 4 | -11/Scrapyard | Discovered new exit (range 15) 67 | -11/Scrapyard | Entered Materials 327 | -10/Materials | Build established: Mutant 442 | -10/Materials | Discovered new exit (range 9) 466 | -10/Materials | Identified exit to Mines 598 | -10/Materials | Repaired Lgt. Treads 709 | -10/Materials | Entered Mines 804 | -10/Mines | Discovered new exit (range 9) 892 | -10/Mines | Learned location of 1 exit from Materials 1163 | -10/Mines | Discovered new exit (range 3) 1429 | -10/Mines | Escorted by a lone wolf Derelict 1598 | -10/Mines | Learned Materials stockpile data 1636 | -10/Mines | Discovered new exit (range 3) 1639 | -10/Mines | Entered Subcaves 1639 | -10/Subcaves | Accompanied by 1 ally 1654 | -10/Subcaves | Learned 2 Materials zone layouts 2290 | -10/Subcaves | Visited 4L-MR0's lab 2310 | -10/Subcaves | Found Powered Cannon 2344 | -10/Subcaves | Discovered new exit (range 4) 2570 | -10/Subcaves | Discovered new exit (range 12) 2750 | -10/Subcaves | Build established: Subdweller-Mutant 2759 | -10/Subcaves | A Subdweller sparked back to life 2792 | -10/Subcaves | Core integrity fell below 50% 2817 | -10/Subcaves | Found Gun Armor 2819 | -10/Subcaves | Attached Gun Armor, gained temporary slots: Weapon x2 2830 | -10/Subcaves | Lost 3 parts (1n1u1w) 3206 | -10/Subcaves | Build established: Tank 3338 | -10/Subcaves | Shifting Twisted Machinery released Flamer 3343 | -10/Subcaves | Shifting Twisted Machinery released Battle Rifle 3461 | -10/Subcaves | Shifting Twisted Machinery released Sub. Power Source 3538 | -10/Subcaves | Learned location of Zion (-6) 3538 | -10/Subcaves | Met a Zionite searching for "candidates" 3555 | -10/Subcaves | Shifting Twisted Machinery released Battle Rifle 3656 | -10/Subcaves | Lost 4 parts (2n2w) 3954 | -10/Subcaves | Build established: Subdweller-Mutant 4201 | -10/Subcaves | Found SUBCON Basin 4302 | -10/Subcaves | Build established: Scavenger-Mutant 4395 | -10/Subcaves | Discovered new exit (range 2) 4396 | -10/Subcaves | Entered Recycling 4551 | -7/Recycling | Discovered new exit (range 14) 5021 | -7/Recycling | Scanned before Scraplab entrance 5048 | -7/Recycling | Entered Scraplab 5097 | -7/Recycling | Discovered new exit (range 2) 5099 | -7/Recycling | Entered Scraptown 5172 | -7/Scraptown | Heard Great Nut preacher, LISTEN AND RECITE! 5491 | -7/Scraptown | Scanned Subdweller tech in exchange for log data 5495 | -7/Scraptown | Learned location of Testing (-2) 5497 | -7/Scraptown | Learned Research stockpile data 5500 | -7/Scraptown | Learned Research terminal intel 5502 | -7/Scraptown | Learned Factory terminal intel 5521 | -7/Scraptown | Discovered new exit (range 13) 5626 | -7/Scraptown | Visited The Evicted 5664 | -7/Scraptown | Visited Bundlers 5744 | -7/Scraptown | Visited Awakened 5840 | -7/Scraptown | Visited Spacefarers 5953 | -7/Scraptown | Visited Cyclists 5987 | -7/Scraptown | Visited UFD Registry 5987 | -7/Scraptown | Registered with UFD as "Spikebank" 6025 | -7/Scraptown | Entered Cyclist Reading Room 6080 | -7/Scraptown | Visited Comm Corps 6257 | -7/Scraptown | Visited Analyses Database 6304 | -7/Scraptown | Visited Scrap Suit Storage 6372 | -7/Scraptown | Visited Cartography Club 6421 | -7/Scraptown | Discovered new exit (range 12) 7244 | -7/Scraptown | Visited Derelict Rescue Squad 7255 | -7/Scraptown | Found DRS Beacon 7296 | -7/Scraptown | Visited Supply Room 7410 | -7/Scraptown | Visited Observation Area 7482 | -7/Scraptown | Visited Scrapoid Research Area 7583 | -7/Scraptown | Visited Abandonware Association 7602 | -7/Scraptown | Learned abandonware demo "REPAIR.EXE" 7602 | -7/Scraptown | Learned abandonware demo "ERRANTS.EXE" 7893 | -7/Scraptown | Attached Powered Cannon, gained temporary slot: Power 7895 | -7/Scraptown | Attacked by Scraptown defenders 7912 | -7/Scraptown | Core integrity fell below 20% 7937 | -7/Scraptown | Learned location of Storage (-7) 7937 | -7/Scraptown | Learned location of Lower Caves (-7) 7937 | -7/Scraptown | Learned location of Armory (-3) 7937 | -7/Scraptown | Learned 16 Materials zone layouts 7937 | -7/Scraptown | Learned 24 Factory zone layouts 7937 | -7/Scraptown | Learned 4 Storage zone layouts 7937 | -7/Scraptown | Learned 24 Upper Caves zone layouts 7937 | -7/Scraptown | Learned 8 Proximity Caves zone layouts 7937 | -7/Scraptown | Learned 20 Proximity Caves zone layouts 7937 | -7/Scraptown | Learned 24 Proximity Caves zone layouts 7937 | -7/Scraptown | Learned location of 1 exit from Research 7937 | -7/Scraptown | Learned location of 1 exit from Lower Caves 7937 | -7/Scraptown | Learned location of 2 exits from Proximity Caves 7950 | -7/Scraptown | Found Scrap Suit 8067 | -7/Scraptown | Destroyed by MQ-CH3(j) with Overtuned Pulse Rifle Last Messages --------------- Lower Caves entrances. Data stored: Lower Caves entrances (x3). >>Record "ACCESS/PRO=1" Proximity Caves entrance. Data stored: Proximity Caves entrances (x1). >>Record "ACCESS/EXT=1" Extension entrance. Data stored: Extension entrances (x1). 07950_ Acquired Scrap Suit. 07953_ Acquired Mak. Salvage Targeting Computer. 07958_ Acquired Ovr. Titanium Leg. 07961_ Acquired Mak. Microdissipator Network. 07992_ ANNOUNCEMENT: Triborg tracking relay activated. Stay clear or you only have yourself to blame! 08018_ Sub. Power Source shoots sparks and powers down. 08064_ 22-9YE(j): "We're here to scrap you, Spikebank!" 08066_ 22-9YE(j) destroyed. Map ----- +----------------------------------------------------+ | | | | | | | | | | | | | | | | | | | ?????????????#?#?????????????????????????????????? | | ????##??????#????????????????????????????????????? | | ##???????#?????#????#????????????????????????????? | | ##????????#????#?#???#???????????????????????????? | | ????????##?#?????????????????????????????????????? | | ???#?#??#?#??#??##??###??????????????????????????? | | #?????????#??####?##??#??????????????????????????? | | ?#???????#?#??#?######??#?#??????????????????????? | | ##????###################????????????????????????? | | ????#??#########?###########?????????????????????? | | #???##??####################?????????????????????? | | ##???#########################??#????????????????? | | #?####################"""#######?????????????????? | | ##??##################" "#######?????????????????? | | ""|##"""##### ####### < ########????????????????? | | "" ##!!"#### #####; #########???????????????? | | =j= @#########??????????????? | | !%! #########??????????????? | | ############ ########;############????????????? | | ############# #########;"##########?##??????????? | | ############# ## # # # #########????????????? | | ############# ##### # # ## ##########???????????? | | ### """# # ###"# " #########????????????? | | ### ""# # #[ # # % ############?????????? | | ### "##" # # # ## ###" ############?#????????? | | ### "## "# # ##" # ##############????????? | | ### """ " # # ####X# ###########?###???????? | | ### ##" # # ## #### # ##############????????? | | ###" "##" # # # # #############????????? | | ###" """ # ###### ##################?????????? | | ### # # #############????????? | | ###"""""""""# # ############?????????? | | ####### ##### ## ########################???????? | | ####### ##### ## ######################?????????? | | """"""" """"" "" "## "##########?????????? | | "## ""##########?????????? | | "## """" "#########??????????? | | "## "### "########?#?????????? | | "## "#X ""########???????????? | | "### "#########??????????? | | """"""""""""" "## """" "#######??#?????????? | +----------------------------------------------------+ Best States ------------- Heat Dissipation 25 Energy Generation 25 Energy Capacity 300 Matter Stores 300 Matter Capacity 300 Sight Range 16 Terrain Scan Density 10 Armor Coverage 800 Core Shielding 20 Evasion (%) 40 Recoil Reduction 2 Offensive Hacking 10 Authchip Count 2 Item Schematics ----------------- None Robot Schematics ------------------ None Fabricated ------------ Nothing Alien Tech Used ----------------- None Achievements -------------- None Challenges ------------ None Game ------ Seed InertialPointyCleaver Manual? 0 Play Time 00:35:23 Cumulative 871.1 hours Start 2024.08.07 @ 16:30:40 End 2024.08.07 @ 17:07:23 Sessions 1 Manual Loads 0 Difficulty Rogue Special Mode None Game No. 546 Rogue 539 Adventurer 0 Explorer 7 Win Type - Total 58 Types 21/6/20/2/0/1/6/1/1 Lore% 77 Gallery% 93 Achievement% 84 Wizard Run 0 Options --------- Layout 2 ASCII 0 Keyboard 0 Movement Numpad Keybinds 0 Fullscreen 1 Font 24/Tamsyn Map View 50x44 Zoom Use 0% Tactical HUD 1 Map Filters NONE Filters NONE Steam 1 RUN: 432a90c1-4b55-40e0-9396-44e8052809d0